[Event "Late-Titled-Tuesday-Blitz-March-12-2024"]
[Site "Chess.com"]
[Date "2024.03.12"]
[Round "3"]
[White "PelinGorki"]
[Black "KNVB"]
[Result "1-0"]
[WhiteElo "2550"]
[BlackElo "2770"]
[TimeControl "180+1"]
[EndTime "14:27:38 PDT"]
[Termination "PelinGorki won on time"]

1. e4 {[%clk 0:03:00.1]} 1... b6 {[%clk 0:02:58.2]} 2. Nc3 {[%clk 0:02:59.3]}
2... Bb7 {[%clk 0:02:58.8]} 3. Bc4 {[%clk 0:02:57.2]} 3... e6 {[%clk 0:02:59.3]}
4. d3 {[%clk 0:02:56.5]} 4... Bb4 {[%clk 0:02:58.9]} 5. Qe2 {[%clk 0:02:49.8]}
5... d5 {[%clk 0:02:57]} 6. exd5 {[%clk 0:02:49.8]} 6... Bxd5 {[%clk 0:02:57.9]}
7. Bxd5 {[%clk 0:02:47.9]} 7... Qxd5 {[%clk 0:02:58.8]} 8. Nf3 {[%clk
0:02:47.5]} 8... Bxc3+ {[%clk 0:02:57.8]} 9. bxc3 {[%clk 0:02:46.9]} 9... Nf6
{[%clk 0:02:58.6]} 10. Bd2 {[%clk 0:02:46.1]} 10... Nc6 {[%clk 0:02:58.3]} 11.
O-O {[%clk 0:02:45.8]} 11... O-O {[%clk 0:02:58.3]} 12. c4 {[%clk 0:02:43.6]}
12... Qd6 {[%clk 0:02:58.5]} 13. Bc3 {[%clk 0:02:43.5]} 13... Nd7 {[%clk
0:02:57.1]} 14. Rfe1 {[%clk 0:02:42.3]} 14... Rfe8 {[%clk 0:02:57.6]} 15. Qe4
{[%clk 0:02:29.4]} 15... h6 {[%clk 0:02:55.2]} 16. Re2 {[%clk 0:02:12.9]} 16...
Rad8 {[%clk 0:02:38.6]} 17. Rae1 {[%clk 0:02:12.8]} 17... e5 {[%clk 0:01:59.1]}
18. Nh4 {[%clk 0:01:45.9]} 18... Re6 {[%clk 0:00:27.2]} 19. Nf5 {[%clk
0:01:31.9]} 19... Qf8 {[%clk 0:00:27.6]} 20. Qh4 {[%clk 0:01:31.6]} 20... Rde8
{[%clk 0:00:23.4]} 21. Re3 {[%clk 0:01:24.2]} 21... Kh7 {[%clk 0:00:18.8]} 22.
Rh3 {[%clk 0:01:18]} 22... Rg6 {[%clk 0:00:07]} 23. Qe4 {[%clk 0:01:02.8]} 23...
Nc5 {[%clk 0:00:05.8]} 24. Qd5 {[%clk 0:00:54]} 24... Ne7 {[%clk 0:00:02.1]} 25.
Nxe7 {[%clk 0:00:49.8]} 25... Rxe7 {[%clk 0:00:03]} 26. g3 {[%clk 0:00:19]}
26... Rd6 {[%clk 0:00:02.1]} 27. Qf3 {[%clk 0:00:16.9]} 27... f6 {[%clk
0:00:02.4]} 28. Qf5+ {[%clk 0:00:14.8]} 28... Kg8 {[%clk 0:00:02.9]} 29. Rh4
{[%clk 0:00:14.2]} 29... Qe8 {[%clk 0:00:02.7]} 30. Rg4 {[%clk 0:00:14]} 30...
Kh8 {[%clk 0:00:02.5]} 31. Bd2 {[%clk 0:00:14.3]} 31... Ne6 {[%clk 0:00:01.5]}
32. Rg6 {[%clk 0:00:13.9]} 32... Nd4 {[%clk 0:00:01.5]} 33. Qh5 {[%clk
0:00:13.8]} 33... Rf7 {[%clk 0:00:01.3]} 34. Bxh6 {[%clk 0:00:12.5]} 34... Kg8
{[%clk 0:00:02.1]} 35. Rxg7+ {[%clk 0:00:09.6]} 35... Rxg7 {[%clk 0:00:02.1]}
36. Qxe8+ {[%clk 0:00:09.8]} 36... Kh7 {[%clk 0:00:02.4]} 37. Bxg7 {[%clk
0:00:09.9]} 37... Kxg7 {[%clk 0:00:02.1]} 38. Qe7+ {[%clk 0:00:09.8]} 38... Kg6
{[%clk 0:00:02.4]} 39. Qxc7 {[%clk 0:00:10]} 39... Re6 {[%clk 0:00:01.6]} 40.
Kg2 {[%clk 0:00:08.6]} 40... Nxc2 {[%clk 0:00:01.4]} 41. Re4 {[%clk 0:00:08.1]}
41... f5 {[%clk 0:00:01.4]} 42. Rxe5 {[%clk 0:00:08]} 42... Rxe5 {[%clk
0:00:01.4]} 43. Qxe5 {[%clk 0:00:08.9]} 43... Nb4 {[%clk 0:00:01.8]} 44. Qd6+
{[%clk 0:00:09.1]} 44... Kg5 {[%clk 0:00:01.6]} 45. Qxb4 {[%clk 0:00:10]} 45...
f4 {[%clk 0:00:01.8]} 46. Qd6 {[%clk 0:00:09.9]} 46... f3+ {[%clk 0:00:02]} 47.
Kxf3 {[%clk 0:00:10.2]} 1-0

[Event "Late-Titled-Tuesday-Blitz-March-12-2024"]
[Site "Chess.com"]
[Date "2024.03.12"]
[Round "3"]
[White "The_Machine04"]
[Black "SantoBlue"]
[Result "1/2-1/2"]
[WhiteElo "2818"]
[BlackElo "3055"]
[TimeControl "180+1"]
[EndTime "14:27:39 PDT"]
[Termination "Game drawn by repetition"]

1. d4 {[%clk 0:03:00.9]} 1... d6 {[%clk 0:02:58.9]} 2. Nf3 {[%clk 0:03:00.8]}
2... Nf6 {[%clk 0:02:58.1]} 3. Nbd2 {[%clk 0:03:00.5]} 3... Nbd7 {[%clk
0:02:57.2]} 4. e4 {[%clk 0:03:00.3]} 4... e5 {[%clk 0:02:58]} 5. dxe5 {[%clk
0:02:58.9]} 5... Nxe5 {[%clk 0:02:57.6]} 6. Nxe5 {[%clk 0:02:58.4]} 6... dxe5
{[%clk 0:02:58.5]} 7. Bc4 {[%clk 0:02:54.1]} 7... Bc5 {[%clk 0:02:58.3]} 8. O-O
{[%clk 0:02:52.9]} 8... O-O {[%clk 0:02:54.3]} 9. Qe2 {[%clk 0:02:48]} 9... c6
{[%clk 0:02:43.6]} 10. a4 {[%clk 0:02:39.2]} 10... a5 {[%clk 0:02:42.8]} 11. Nb3
{[%clk 0:02:19.9]} 11... Bb6 {[%clk 0:02:30.6]} 12. Be3 {[%clk 0:02:18.7]} 12...
Bxe3 {[%clk 0:02:22.5]} 13. Qxe3 {[%clk 0:02:19.6]} 13... Bg4 {[%clk 0:02:10.5]}
14. f3 {[%clk 0:02:16.9]} 14... Bd7 {[%clk 0:02:06.5]} 15. Rfd1 {[%clk
0:02:13.3]} 15... b6 {[%clk 0:02:03.7]} 16. Rd2 {[%clk 0:02:05.9]} 16... Qc7
{[%clk 0:02:03.6]} 17. Rad1 {[%clk 0:02:04.7]} 17... Rad8 {[%clk 0:02:04.3]} 18.
Nc1 {[%clk 0:01:55.2]} 18... h6 {[%clk 0:01:55.8]} 19. Qc3 {[%clk 0:01:53.4]}
19... b5 {[%clk 0:01:47.7]} 20. Bf1 {[%clk 0:01:40.6]} 20... Qb6+ {[%clk
0:01:47.1]} 21. Kh1 {[%clk 0:01:39.3]} 21... Rfe8 {[%clk 0:01:40.3]} 22. axb5
{[%clk 0:01:32.7]} 22... cxb5 {[%clk 0:01:40.1]} 23. Rd6 {[%clk 0:01:32.8]}
23... Bc6 {[%clk 0:00:51.5]} 24. Rxd8 {[%clk 0:00:58.1]} 24... Rxd8 {[%clk
0:00:51.7]} 25. Rxd8+ {[%clk 0:00:57.2]} 25... Qxd8 {[%clk 0:00:52.6]} 26. Qxc6
{[%clk 0:00:28.1]} 26... Qd1 {[%clk 0:00:52.2]} 27. Qxb5 {[%clk 0:00:28.6]}
27... Qxc1 {[%clk 0:00:52.2]} 28. c3 {[%clk 0:00:29.2]} 28... a4 {[%clk
0:00:42.1]} 29. Qe2 {[%clk 0:00:25.2]} 29... Nd7 {[%clk 0:00:35.6]} 30. Qf2
{[%clk 0:00:19.2]} 30... Nc5 {[%clk 0:00:34.9]} 31. Qxc5 {[%clk 0:00:16.1]}
31... Qxf1+ {[%clk 0:00:34.2]} 32. Qg1 {[%clk 0:00:16.7]} 32... Qe2 {[%clk
0:00:29.6]} 33. Qa1 {[%clk 0:00:16.5]} 33... Kf8 {[%clk 0:00:22.5]} 34. h3
{[%clk 0:00:15.2]} 34... Qc2 {[%clk 0:00:18.2]} 35. Qa3+ {[%clk 0:00:12.7]}
35... Kg8 {[%clk 0:00:18.6]} 36. Qa1 {[%clk 0:00:10.1]} 36... h5 {[%clk
0:00:18.5]} 37. Kh2 {[%clk 0:00:08.6]} 37... h4 {[%clk 0:00:18.6]} 38. Kh1
{[%clk 0:00:08.3]} 38... g5 {[%clk 0:00:18.4]} 39. Kh2 {[%clk 0:00:08]} 39...
Kg7 {[%clk 0:00:19]} 40. Qa3 {[%clk 0:00:08.1]} 40... Qf2 {[%clk 0:00:07.2]} 41.
Qb4 {[%clk 0:00:07.3]} 41... Qg3+ {[%clk 0:00:06.2]} 42. Kg1 {[%clk 0:00:07.8]}
42... Qe1+ {[%clk 0:00:06.6]} 43. Kh2 {[%clk 0:00:08.4]} 43... Qg3+ {[%clk
0:00:05]} 44. Kg1 {[%clk 0:00:08.9]} 44... Qe1+ {[%clk 0:00:05]} 45. Kh2 {[%clk
0:00:09.4]} 45... Qg3+ {[%clk 0:00:04.1]} 1/2-1/2

[Event "Late-Titled-Tuesday-Blitz-March-12-2024"]
[Site "Chess.com"]
[Date "2024.03.12"]
[Round "3"]
[White "Quattroporte300"]
[Black "Skatchkov_V"]
[Result "0-1"]
[WhiteElo "2479"]
[BlackElo "2677"]
[TimeControl "180+1"]
[EndTime "14:27:39 PDT"]
[Termination "Skatchkov_V won on time"]

1. e4 {[%clk 0:03:00.9]} 1... e5 {[%clk 0:02:58.6]} 2. Nf3 {[%clk 0:02:59.5]}
2... d5 {[%clk 0:02:59.3]} 3. Nxe5 {[%clk 0:02:58.3]} 3... Bd6 {[%clk
0:02:59.4]} 4. d4 {[%clk 0:02:57.1]} 4... dxe4 {[%clk 0:02:59.9]} 5. Nc4 {[%clk
0:02:55.7]} 5... Nc6 {[%clk 0:03:00.2]} 6. Nc3 {[%clk 0:02:54.3]} 6... Bb4
{[%clk 0:03:00.7]} 7. Be3 {[%clk 0:02:45.6]} 7... Nge7 {[%clk 0:02:59.9]} 8. a3
{[%clk 0:02:45.1]} 8... Bxc3+ {[%clk 0:03:00.2]} 9. bxc3 {[%clk 0:02:45.1]} 9...
Nd5 {[%clk 0:03:01.1]} 10. Qd2 {[%clk 0:02:44.6]} 10... O-O {[%clk 0:03:01.8]}
11. Be2 {[%clk 0:02:43.8]} 11... Be6 {[%clk 0:02:55.9]} 12. O-O {[%clk
0:02:43.3]} 12... f5 {[%clk 0:02:56.2]} 13. Bg5 {[%clk 0:02:41.8]} 13... Qe8
{[%clk 0:02:53.3]} 14. Ne3 {[%clk 0:02:40.7]} 14... Nde7 {[%clk 0:02:17.4]} 15.
d5 {[%clk 0:02:23.1]} 15... Rd8 {[%clk 0:02:17.9]} 16. c4 {[%clk 0:02:19.5]}
16... f4 {[%clk 0:02:18.5]} 17. Qc3 {[%clk 0:02:06.5]} 17... Qg6 {[%clk
0:02:12]} 18. Bxe7 {[%clk 0:01:55.3]} 18... Nxe7 {[%clk 0:02:07.3]} 19. dxe6
{[%clk 0:01:54.7]} 19... f3 {[%clk 0:01:53]} 20. Bd1 {[%clk 0:00:47.9]} 20...
Nf5 {[%clk 0:01:52.9]} 21. g3 {[%clk 0:00:48.1]} 21... Qxe6 {[%clk 0:01:52.9]}
22. Kh1 {[%clk 0:00:41.9]} 22... Nxe3 {[%clk 0:01:40.5]} 23. Qxe3 {[%clk
0:00:41.3]} 23... Qh3 {[%clk 0:01:40.9]} 24. Rg1 {[%clk 0:00:38.5]} 24... Rd6
{[%clk 0:01:41.5]} 25. Bxf3 {[%clk 0:00:17]} 25... exf3 {[%clk 0:01:42.4]} 26.
g4 {[%clk 0:00:14.1]} 26... Qh4 {[%clk 0:01:12.6]} 27. Rg3 {[%clk 0:00:12.6]}
27... Qf6 {[%clk 0:00:48]} 28. Re1 {[%clk 0:00:13.1]} 28... Rd4 {[%clk
0:00:40.3]} 29. h3 {[%clk 0:00:12.1]} 29... Rxc4 {[%clk 0:00:39.7]} 30. Qb3
{[%clk 0:00:10.8]} 30... Qf7 {[%clk 0:00:36.6]} 31. Kh2 {[%clk 0:00:10.6]} 31...
b6 {[%clk 0:00:35]} 32. Rxf3 {[%clk 0:00:10.5]} 32... Qxf3 {[%clk 0:00:33]} 33.
Qxc4+ {[%clk 0:00:11.1]} 33... Kh8 {[%clk 0:00:33.7]} 34. Qe2 {[%clk 0:00:07.9]}
34... Qxa3 {[%clk 0:00:28]} 35. Qe3 {[%clk 0:00:07.4]} 35... Qxe3 {[%clk
0:00:23.5]} 36. fxe3 {[%clk 0:00:08]} 36... Rf2+ {[%clk 0:00:24.1]} 37. Kg3
{[%clk 0:00:08.4]} 37... Rxc2 {[%clk 0:00:25]} 38. Rd1 {[%clk 0:00:08.4]} 38...
Kg8 {[%clk 0:00:25.5]} 39. Rd7 {[%clk 0:00:06.9]} 39... a5 {[%clk 0:00:25.3]}
40. Kf4 {[%clk 0:00:06.7]} 40... a4 {[%clk 0:00:25.5]} 41. Kf5 {[%clk
0:00:06.3]} 41... a3 {[%clk 0:00:21.5]} 42. Ke6 {[%clk 0:00:05]} 42... h6 {[%clk
0:00:18.2]} 43. Rd8+ {[%clk 0:00:03.3]} 43... Kh7 {[%clk 0:00:18.7]} 44. Ra8
{[%clk 0:00:04]} 44... a2 {[%clk 0:00:19.1]} 45. h4 {[%clk 0:00:04]} 45... b5
{[%clk 0:00:19.5]} 46. g5 {[%clk 0:00:01.9]} 46... hxg5 {[%clk 0:00:18.6]} 47.
hxg5 {[%clk 0:00:02.4]} 47... Kg6 {[%clk 0:00:19.3]} 0-1

[Event "Late-Titled-Tuesday-Blitz-March-12-2024"]
[Site "Chess.com"]
[Date "2024.03.12"]
[Round "3"]
[White "SamuraisOfChess"]
[Black "pirulillo"]
[Result "1-0"]
[WhiteElo "2580"]
[BlackElo "2294"]
[TimeControl "180+1"]
[EndTime "14:27:40 PDT"]
[Termination "SamuraisOfChess won by checkmate"]

1. e4 {[%clk 0:02:59.9]} 1... c5 {[%clk 0:02:56.9]} 2. Nf3 {[%clk 0:02:59.6]}
2... e6 {[%clk 0:02:55.8]} 3. d4 {[%clk 0:02:59.6]} 3... cxd4 {[%clk 0:02:56.7]}
4. Nxd4 {[%clk 0:03:00.4]} 4... Nf6 {[%clk 0:02:55.9]} 5. Nc3 {[%clk 0:02:59.5]}
5... Nc6 {[%clk 0:02:54.8]} 6. Be3 {[%clk 0:02:59.5]} 6... Bb4 {[%clk 0:02:51]}
7. f3 {[%clk 0:02:57.2]} 7... d5 {[%clk 0:02:49.7]} 8. Bb5 {[%clk 0:02:52.1]}
8... O-O {[%clk 0:02:39.5]} 9. Nxc6 {[%clk 0:02:48.8]} 9... bxc6 {[%clk
0:02:40.4]} 10. Bxc6 {[%clk 0:02:48.6]} 10... Bxc3+ {[%clk 0:02:36.3]} 11. bxc3
{[%clk 0:02:48.2]} 11... Ba6 {[%clk 0:02:36.6]} 12. Bxa8 {[%clk 0:02:46.9]}
12... Qxa8 {[%clk 0:02:37.5]} 13. e5 {[%clk 0:02:46.7]} 13... Nd7 {[%clk
0:02:36.1]} 14. Bd4 {[%clk 0:02:46.3]} 14... Qc6 {[%clk 0:02:29.9]} 15. Kf2
{[%clk 0:02:44.5]} 15... Nb6 {[%clk 0:02:16.5]} 16. Re1 {[%clk 0:02:41.2]} 16...
Na4 {[%clk 0:02:11]} 17. Qd2 {[%clk 0:02:37]} 17... Rc8 {[%clk 0:02:10.9]} 18.
Rab1 {[%clk 0:02:33.6]} 18... Nb6 {[%clk 0:02:09.7]} 19. Kg1 {[%clk 0:02:32.5]}
19... h6 {[%clk 0:02:09.8]} 20. Qf2 {[%clk 0:02:31.6]} 20... Nc4 {[%clk
0:02:08.7]} 21. Bxa7 {[%clk 0:02:28.8]} 21... Qa4 {[%clk 0:02:08.4]} 22. Bd4
{[%clk 0:02:17.8]} 22... Ra8 {[%clk 0:02:00.6]} 23. Rb4 {[%clk 0:02:12.5]} 23...
Qa5 {[%clk 0:01:59]} 24. a4 {[%clk 0:02:08.4]} 24... Bc8 {[%clk 0:01:57.3]} 25.
Reb1 {[%clk 0:02:07.3]} 25... Bd7 {[%clk 0:01:57.1]} 26. Rb8+ {[%clk 0:02:05.7]}
26... Rxb8 {[%clk 0:01:55.7]} 27. Rxb8+ {[%clk 0:02:06.1]} 27... Kh7 {[%clk
0:01:56.6]} 28. Rb4 {[%clk 0:01:45.3]} 28... Bxa4 {[%clk 0:01:53.8]} 29. h3
{[%clk 0:01:44]} 29... Bc6 {[%clk 0:01:51.3]} 30. Kh2 {[%clk 0:01:43.2]} 30...
Qa1 {[%clk 0:01:49.2]} 31. Qe2 {[%clk 0:01:41.2]} 31... Qc1 {[%clk 0:01:46.6]}
32. Qd3+ {[%clk 0:01:38.3]} 32... g6 {[%clk 0:01:45.2]} 33. Rb8 {[%clk
0:01:28.7]} 33... Qf4+ {[%clk 0:01:38.6]} 34. Kh1 {[%clk 0:01:27.3]} 34... h5
{[%clk 0:01:37.4]} 35. Qe2 {[%clk 0:01:19.5]} 35... h4 {[%clk 0:01:29.6]} 36.
Qe1 {[%clk 0:01:19]} 36... g5 {[%clk 0:01:27.4]} 37. Qe2 {[%clk 0:01:15.3]}
37... Qc1+ {[%clk 0:01:02.9]} 38. Bg1 {[%clk 0:01:14.5]} 38... Qf4 {[%clk
0:00:58.9]} 39. Qd3+ {[%clk 0:01:13.3]} 39... Kg7 {[%clk 0:00:52.1]} 40. Qd4
{[%clk 0:01:06.7]} 40... Qc1 {[%clk 0:00:48.9]} 41. Qc5 {[%clk 0:01:03]} 41...
Nd2 {[%clk 0:00:41.6]} 42. Qf8+ {[%clk 0:00:51.4]} 42... Kg6 {[%clk 0:00:41]}
43. Qg8+ {[%clk 0:00:48]} 43... Kf5 {[%clk 0:00:39.8]} 44. Qxf7+ {[%clk
0:00:48.3]} 44... Kxe5 {[%clk 0:00:39.7]} 45. Qg7+ {[%clk 0:00:40.8]} 45... Kd6
{[%clk 0:00:35.8]} 46. Qxg5 {[%clk 0:00:36.8]} 46... Qd1 {[%clk 0:00:32.7]} 47.
Qf4+ {[%clk 0:00:35]} 47... Kd7 {[%clk 0:00:30]} 48. Rf8 {[%clk 0:00:31.7]}
48... Nf1 {[%clk 0:00:27.3]} 49. Qxh4 {[%clk 0:00:26.7]} 49... Ne3 {[%clk
0:00:17.8]} 50. Qd8# {[%clk 0:00:26.2]} 1-0

[Event "Late-Titled-Tuesday-Blitz-March-12-2024"]
[Site "Chess.com"]
[Date "2024.03.12"]
[Round "3"]
[White "Rinqed222"]
[Black "Redzishchess"]
[Result "1/2-1/2"]
[WhiteElo "2329"]
[BlackElo "2525"]
[TimeControl "180+1"]
[EndTime "14:27:42 PDT"]
[Termination "Game drawn - insufficient material"]

1. e4 {[%clk 0:03:00.9]} 1... c5 {[%clk 0:02:57.7]} 2. Nc3 {[%clk 0:03:00.7]}
2... Nc6 {[%clk 0:02:57.3]} 3. Bb5 {[%clk 0:03:00.6]} 3... g6 {[%clk 0:02:56.5]}
4. Bxc6 {[%clk 0:02:59]} 4... dxc6 {[%clk 0:02:57.4]} 5. d3 {[%clk 0:02:59.4]}
5... Bg7 {[%clk 0:02:57.7]} 6. f4 {[%clk 0:02:59.8]} 6... b6 {[%clk 0:02:46.2]}
7. Nf3 {[%clk 0:02:59]} 7... Bg4 {[%clk 0:02:46.4]} 8. O-O {[%clk 0:02:58.8]}
8... e6 {[%clk 0:02:46.4]} 9. Qe1 {[%clk 0:02:58.9]} 9... Ne7 {[%clk 0:01:56.9]}
10. Qh4 {[%clk 0:02:48.7]} 10... Bxf3 {[%clk 0:01:37.8]} 11. Rxf3 {[%clk
0:02:49.6]} 11... f5 {[%clk 0:01:31.4]} 12. Be3 {[%clk 0:02:33.5]} 12... Qd7
{[%clk 0:01:07.1]} 13. a4 {[%clk 0:02:16.7]} 13... a5 {[%clk 0:01:06.5]} 14. g4
{[%clk 0:01:18.6]} 14... O-O-O {[%clk 0:00:56.9]} 15. g5 {[%clk 0:01:04.7]}
15... h6 {[%clk 0:00:53.5]} 16. Qf2 {[%clk 0:00:52.5]} 16... hxg5 {[%clk
0:00:52]} 17. fxg5 {[%clk 0:00:51.7]} 17... Bd4 {[%clk 0:00:37]} 18. Ne2 {[%clk
0:00:44.3]} 18... e5 {[%clk 0:00:28.2]} 19. Bxd4 {[%clk 0:00:37.4]} 19... cxd4
{[%clk 0:00:25.3]} 20. c3 {[%clk 0:00:37.6]} 20... fxe4 {[%clk 0:00:23.7]} 21.
dxe4 {[%clk 0:00:37.5]} 21... Qg4+ {[%clk 0:00:13.7]} 22. Ng3 {[%clk 0:00:31.4]}
22... Qxg5 {[%clk 0:00:10.3]} 23. cxd4 {[%clk 0:00:27.1]} 23... Rxd4 {[%clk
0:00:11.2]} 24. Qe2 {[%clk 0:00:27.3]} 24... Kb7 {[%clk 0:00:09.8]} 25. Rf7
{[%clk 0:00:13.4]} 25... Rd2 {[%clk 0:00:08.7]} 26. Rxe7+ {[%clk 0:00:13.5]}
26... Qxe7 {[%clk 0:00:07.7]} 27. Qxd2 {[%clk 0:00:13.8]} 27... Rd8 {[%clk
0:00:08.4]} 28. Qf2 {[%clk 0:00:13.2]} 28... Rf8 {[%clk 0:00:08.1]} 29. Qe2
{[%clk 0:00:12.8]} 29... Qc5+ {[%clk 0:00:08.3]} 30. Kg2 {[%clk 0:00:12]} 30...
Qd4 {[%clk 0:00:07.3]} 31. Rf1 {[%clk 0:00:11.5]} 31... Rxf1 {[%clk 0:00:06.2]}
32. Nxf1 {[%clk 0:00:11.5]} 32... b5 {[%clk 0:00:05.8]} 33. axb5 {[%clk
0:00:11.6]} 33... c5 {[%clk 0:00:06.4]} 34. Qf2 {[%clk 0:00:09.1]} 34... Qxe4+
{[%clk 0:00:06.4]} 35. Qf3 {[%clk 0:00:10]} 35... Qxf3+ {[%clk 0:00:06.8]} 36.
Kxf3 {[%clk 0:00:10.9]} 36... Kb6 {[%clk 0:00:07.1]} 37. Ke4 {[%clk 0:00:11]}
37... Kxb5 {[%clk 0:00:07.7]} 38. Kxe5 {[%clk 0:00:11.5]} 38... Kb4 {[%clk
0:00:08.2]} 39. Ne3 {[%clk 0:00:11.2]} 39... Kb3 {[%clk 0:00:08.1]} 40. Kd5
{[%clk 0:00:11]} 40... Kxb2 {[%clk 0:00:08.2]} 41. Kxc5 {[%clk 0:00:11.8]} 41...
a4 {[%clk 0:00:08.5]} 42. Nc4+ {[%clk 0:00:12]} 42... Kc3 {[%clk 0:00:08.8]} 43.
Kb5 {[%clk 0:00:11.9]} 43... Kd3 {[%clk 0:00:08.3]} 44. Ne5+ {[%clk 0:00:11.2]}
44... Ke4 {[%clk 0:00:07.6]} 45. Nc4 {[%clk 0:00:06]} 45... Kf3 {[%clk
0:00:06.5]} 46. Kxa4 {[%clk 0:00:06.5]} 46... Kg2 {[%clk 0:00:06.8]} 47. Ne5
{[%clk 0:00:05.8]} 47... Kxh2 {[%clk 0:00:07]} 48. Nxg6 {[%clk 0:00:05.8]}
1/2-1/2

[Event "Late-Titled-Tuesday-Blitz-March-12-2024"]
[Site "Chess.com"]
[Date "2024.03.12"]
[Round "3"]
[White "TigrVShlyape"]
[Black "guillembaches"]
[Result "1-0"]
[WhiteElo "2915"]
[BlackElo "2560"]
[TimeControl "180+1"]
[EndTime "14:27:43 PDT"]
[Termination "TigrVShlyape won by resignation"]

1. e4 {[%clk 0:03:00.9]} 1... d5 {[%clk 0:02:59.8]} 2. exd5 {[%clk 0:02:59.8]}
2... Qxd5 {[%clk 0:03:00.7]} 3. Nc3 {[%clk 0:02:59.8]} 3... Qa5 {[%clk
0:03:01.3]} 4. Bc4 {[%clk 0:02:59.8]} 4... Nf6 {[%clk 0:03:01.6]} 5. Nge2 {[%clk
0:02:57.3]} 5... a6 {[%clk 0:02:56.9]} 6. O-O {[%clk 0:02:54.7]} 6... b5 {[%clk
0:02:56.6]} 7. Bb3 {[%clk 0:02:54.2]} 7... e6 {[%clk 0:02:53]} 8. d3 {[%clk
0:02:48.8]} 8... Bb7 {[%clk 0:02:52.1]} 9. a4 {[%clk 0:02:41.6]} 9... b4 {[%clk
0:02:45.8]} 10. Nb1 {[%clk 0:02:38.6]} 10... Nbd7 {[%clk 0:02:34.5]} 11. Nd2
{[%clk 0:02:35.7]} 11... Nb6 {[%clk 0:02:34.2]} 12. Ng3 {[%clk 0:02:16.8]} 12...
Bd6 {[%clk 0:02:25.2]} 13. f4 {[%clk 0:01:58.7]} 13... h5 {[%clk 0:02:05.2]} 14.
Nge4 {[%clk 0:01:54.7]} 14... Be7 {[%clk 0:01:57.9]} 15. Qe2 {[%clk 0:01:51.8]}
15... h4 {[%clk 0:01:53.3]} 16. h3 {[%clk 0:01:50]} 16... Nh5 {[%clk 0:01:41.5]}
17. Nf3 {[%clk 0:01:30.7]} 17... O-O-O {[%clk 0:01:29.8]} 18. Ne5 {[%clk
0:01:20.5]} 18... Bxe4 {[%clk 0:01:06.3]} 19. Qxe4 {[%clk 0:01:16.6]} 19... Ng3
{[%clk 0:01:06.6]} 20. Qf3 {[%clk 0:01:07.4]} 20... Bc5+ {[%clk 0:00:52.2]} 21.
Be3 {[%clk 0:00:49.9]} 21... Bxe3+ {[%clk 0:00:47.7]} 22. Qxe3 {[%clk
0:00:49.7]} 22... Nxf1 {[%clk 0:00:46.6]} 23. Rxf1 {[%clk 0:00:49.1]} 23... Nd5
{[%clk 0:00:28.8]} 24. Qa7 {[%clk 0:00:46.9]} 24... Qb6+ {[%clk 0:00:24.5]} 25.
Qxb6 {[%clk 0:00:46.7]} 25... cxb6 {[%clk 0:00:24.1]} 26. Nxf7 {[%clk
0:00:45.9]} 26... g6 {[%clk 0:00:19.3]} 27. Nxh8 {[%clk 0:00:43.5]} 27... Rxh8
{[%clk 0:00:20.2]} 28. Bxd5 {[%clk 0:00:33.9]} 28... exd5 {[%clk 0:00:21.1]} 29.
Kf2 {[%clk 0:00:33.6]} 29... Re8 {[%clk 0:00:19.3]} 30. Kf3 {[%clk 0:00:32.6]}
30... Kd7 {[%clk 0:00:19.1]} 31. Rf2 {[%clk 0:00:32.2]} 31... Kd6 {[%clk
0:00:18.6]} 32. Kg4 {[%clk 0:00:32.3]} 32... Rh8 {[%clk 0:00:17.8]} 33. Kg5
{[%clk 0:00:32]} 33... Kc5 {[%clk 0:00:10]} 34. Kxg6 {[%clk 0:00:29]} 34... Kd4
{[%clk 0:00:10.3]} 35. Re2 {[%clk 0:00:27.2]} 35... b3 {[%clk 0:00:10.2]} 36.
cxb3 {[%clk 0:00:25.7]} 36... Kxd3 {[%clk 0:00:10.4]} 37. Rf2 {[%clk 0:00:21.4]}
37... d4 {[%clk 0:00:09.4]} 38. f5 {[%clk 0:00:20.7]} 38... Ke3 {[%clk
0:00:09.6]} 39. Rf3+ {[%clk 0:00:20.9]} 39... Ke2 {[%clk 0:00:09.8]} 40. f6
{[%clk 0:00:20.9]} 40... d3 {[%clk 0:00:10]} 41. Rf5 {[%clk 0:00:14.1]} 41...
Rd8 {[%clk 0:00:08.5]} 42. Re5+ {[%clk 0:00:13.1]} 42... Kf1 {[%clk 0:00:08.4]}
43. f7 {[%clk 0:00:12.7]} 43... d2 {[%clk 0:00:08.5]} 44. Re8 {[%clk 0:00:12.8]}
44... d1=Q {[%clk 0:00:08.1]} 45. f8=Q+ {[%clk 0:00:12.6]} 45... Kg1 {[%clk
0:00:06.9]} 46. Rxd8 {[%clk 0:00:12.5]} 46... Qh5+ {[%clk 0:00:01.8]} 47. Kxh5
{[%clk 0:00:11.9]} 47... Kh2 {[%clk 0:00:02.6]} 48. Qf2 {[%clk 0:00:10.5]} 1-0